Cogmind - Beta 16 @@@ ROGUE MODE // 2025.11.17 @ 19:06:50 Player: Lazz Result: Destroyed by G-73 Enforcer with Phase Gun Performance ------------- Evolutions (6) 3000 Regions Visited (11) 2200 Robots Destroyed (64) 320 Value Destroyed (2156) 2156 Prototype IDs (9) 180 Alien Tech Used (0) 0 Bonus (1709) 1709 TOTAL SCORE: 9565 Bonus ------- High Alert Combat Kills 33 Follower Combat Kills 876 Registered with UFD 300 Met Optimus in HQ 500 Cogmind --------- Core Integrity 0/1150 Matter 324/700 Energy 170/170 System Corruption 12% Temperature Warm (155) Movement Walking (260) Ox2 Location -4/Upper Caves Parts ------- > --- POWER (2) -------- Light Antimatter Reactor > --- PROPULSION (5) --- Myomer Leg > --- UTILITY (10) ----- High-capacity Storage Unit Advanced Matter Compressor Improved Terrain Scan Processor Improved Target Analyzer > --- WEAPON (2) ------- Quantum Rifle Quantum Rifle > --- INVENTORY (20) --- Centrium Wheel Centrium Wheel Field Propulsion Array Quantum Rifle Quantum Rifle Coil Gun Scythe Scythe Axe Peak State ------------ > --- POWER ------------ Angular Momentum Engine Micro Fission Core > --- PROPULSION ------- Nuclear Pulse Thruster Nuclear Pulse Thruster Nuclear Pulse Thruster Nuclear Pulse Thruster Nuclear Pulse Thruster > --- UTILITY ---------- Medium Storage Unit Gravity Neutralizer Advanced Signal Interpreter Improved Terrain Scan Processor Improved Target Analyzer Improved Transmission Jammer Mini Drone Bay Mini Drone Bay > --- WEAPON ----------- Gauss Rifle Scythe > --- INVENTORY -------- Fusion Compressor Carbon-fiber Leg Flexi-carbon Leg Antigrav System Improved Light Armor Plating Gauss Rifle Rocket Launcher Rocket Launcher Heavy Missile Launcher [Rating: 84] Favorites ----------- Power Light Ion Engine Engine Light Ion Engine Power Core Micro Fission Core Reactor Antimatter Reactor Propulsion Aluminum Leg Treads Advanced Treads Leg Aluminum Leg Hover Unit Antigrav System Flight Unit Nuclear Pulse Thruster Utility Small Storage Unit Device Drone Bay Storage Small Storage Unit Processor Signal Interpreter Hackware Advanced System Shield Protection Hardened Light Armor Plating Weapon Heavy Assault Cannon Energy Gun Quantum Rifle Ballistic Gun Gauss Rifle Ballistic Cannon Heavy Assault Cannon Launcher Heavy Missile Launcher Impact Weapon Hammer Slashing Weapon Scythe Build | -11 -10 -9 -9 -9 -9 -6 -5 -4 -4 -4 -4 ------- Run | Yrd Mat Mat Sto Rec Scr Fac Fac Fac Was Fac Upp Slots Evolved 12 | . . 2 . . . 6 2 2 . . . Power 1 | . . . . . . 1 . . . . . Propulsion 3 | . . 1 . . . 1 1 . . . . Utility 8 | . . 1 . . . 4 1 2 . . . Weapon . | . . . . . . . . . . . . Parts Attached 91 | 7 1 3 2 . 2 11 24 11 1 13 16 Power 8 | 1 . . . . . 1 2 1 . 2 1 Engine 3 | 1 . . . . . 1 1 . . . . Core 2 | . . . . . . . 1 1 . . . Reactor 3 | . . . . . . . . . . 2 1 Propulsion 32 | 2 . 1 1 . 1 3 11 3 1 4 5 Treads 6 | . . 1 . . 1 1 . 1 . 2 . Leg 13 | 2 . . 1 . . 2 2 . . 1 5 Wheel . | . . . . . . . . . . . . Hover 4 | . . . . . . . 2 1 1 . . Flight 9 | . . . . . . . 7 1 . 1 . Utility 33 | 2 1 1 1 . 1 6 7 5 . 5 4 Device 11 | 1 . . 1 . 1 1 5 . . 1 1 Storage 5 | 1 . . . . . . 1 . . 2 1 Processor 9 | . 1 1 . . . 3 1 1 . 1 1 Hackware 1 | . . . . . . . . 1 . . . Protection 7 | . . . . . . 2 . 3 . 1 1 Artifact . | . . . . . . . . . . . . Weapon 18 | 2 . 1 . . . 1 4 2 . 2 6 Energy Gun 4 | . . . . . . . . . . . 4 Energy Cannon . | . . . . . . . . . . . . Ballistic Gun 7 | 2 . . . . . . 1 1 . 2 1 Ballistic Cannon 1 | . . 1 . . . . . . . . . Launcher 3 | . . . . . . 1 1 1 . . . Special Weapon . | . . . . . . . . . . . . Impact Weapon 1 | . . . . . . . 1 . . . . Slashing Weapon 2 | . . . . . . . 1 . . . 1 Piercing Weapon . | . . . . . . . . . . . . Special Melee Weapon . | . . . . . . . . . . . . Unidentified Prototypes 3 | . . . . . . 1 1 . . 1 . Parts Lost 52 | . . . . 1 . 5 18 11 . 7 10 Power 6 | . . . . . . 1 1 2 . . 2 Propulsion 23 | . . . . 1 . 2 9 3 . 3 5 Utility 15 | . . . . . . 2 6 3 . 2 2 Weapon 8 | . . . . . . . 2 3 . 2 1 Highest Loss Streak 7 | . . . . 1 . 2 5 7 . 4 3 To Critical Strikes 1 | . . . . . . . . 1 . . . Average Backups 7 | 3 6 7 8 8 7 4 8 8 5 8 8 Power . | . 1 1 1 1 1 . . . 1 1 . Propulsion 1 | 2 2 1 2 2 1 . 1 . . 3 3 Utility 1 | . 1 . 1 2 2 . . 1 1 . . Weapon 3 | . 1 4 3 3 3 3 4 4 3 2 3 Tool/Special . | . . . . . . . . . . . . Unused Backups 8 | . . 3 1 . . . . . . . 4 Power 1 | . . 1 . . . . . . . . . Propulsion 4 | . . 2 . . . . . . . . 2 Utility . | . . . . . . . . . . . . Weapon 3 | . . . 1 . . . . . . . 2 Tool/Special . | . . . . . . . . . . . . Average Slot Usage (%) 76 | . 97 82 86 84 87 79 77 50 . 37 62 Engine 7 | . 14 11 11 11 11 7 6 2 . . . Treads 5 | . . 9 7 . 10 8 1 . . 7 . Leg 18 | . 28 22 25 29 22 16 13 . . 3 19 Flight 1 | . . . . . . . 4 9 . . . Device 7 | . 13 . 10 11 11 5 8 4 . 2 1 Storage 8 | . 14 11 11 11 11 6 5 4 . 3 11 Processor 11 | . . 16 11 11 11 18 15 6 . 4 9 Protection 1 | . . . . . . 7 . 5 . . 1 Ballistic Gun 1 | . 25 3 . . . . 1 1 . 6 1 Ballistic Cannon 5 | . . 9 9 11 11 5 . . . . . Slashing Weapon 1 | . . . . . . . 3 4 . 1 1 Peak Build Rating 84 | 7 8 16 21 19 24 45 84 75 10 83 82 Average Rating 36 | 3 6 14 19 18 21 38 58 53 2 55 68 On Entrance 19 | . 7 8 15 19 18 24 41 46 2 10 39 Avg Prop Armor Cover (%) 7 | . . 9 7 . 7 6 8 1 . 13 . Naked Turns 76 | . . . . . . . . 14 39 23 . Heaviest Build 92 | 12 12 20 26 26 26 39 41 36 . 86 92 Greatest Support 140 | 20 20 20 30 30 20 45 75 41 16 140 110 Greatest Overweight (x) 3 | 1 . . 1 1 1 2 3 . . 1 1 Average Overweight (x) . | . . . . . 1 . . . . . . Largest Inventory Capacity 20 | 8 8 8 8 8 8 8 10 10 5 20 20 Average Capacity 9 | 7 8 8 8 8 8 8 9 9 5 15 20 Most Carried 14 | 8 8 8 8 8 8 7 10 10 5 14 12 Average Carried 7 | 3 6 7 7 8 7 4 8 8 5 9 9 Final Capacity 20 | 8 8 8 8 8 8 8 10 5 5 20 20 Final Carried 12 | 4 8 8 8 8 7 7 10 5 5 12 10 Class Distribution -------------------- 74% | Mutant 23% | Scavenger-Mutant Dominant Class ---------------- Mutant | -10/Materials Mutant | -9/Materials Mutant | -9/Storage Mutant | -9/Recycling Mutant | -9/Scraptown Mutant | -6/Factory Scavenger-Mutant | -5/Factory Mutant | -4/Factory Mutant | -4/Waste Scavenger-Mutant | -4/Factory Scavenger-Mutant | -4/Upper Caves Resources | -11 -10 -9 -9 -9 -9 -6 -5 -4 -4 -4 -4 ----------- Run | Yrd Mat Mat Sto Rec Scr Fac Fac Fac Was Fac Upp Matter Collected 2569 | 221 . 107 225 403 10 196 236 330 . 600 241 Remotely . | . . . . . . . . . . . . Salvage Created 2059 | 13 . 167 245 431 . 407 259 188 . 186 163 Parts 127 | 4 . 11 24 21 . 32 21 8 . 5 1 Haulers Intercepted 2 | . . . 1 . . . . 1 . . . Recyclers Shooed 2 | . . . . . . 1 . . . 1 . Parts Field Recycled . | . . . . . . . . . . . . Retrieved Matter . | . . . . . . . . . . . . Parts Self-Destructed 1 | . . . . . . . . . . . 1 Prevented . | . . . . . . . . . . . . Parts Restored . | . . . . . . . . . . . . Kills | -11 -10 -9 -9 -9 -9 -6 -5 -4 -4 -4 -4 ------- Run | Yrd Mat Mat Sto Rec Scr Fac Fac Fac Was Fac Upp Combat Hostiles Destroyed 45 | . . 4 6 7 . 13 10 2 . 2 1 Melee 5 | . . . . . . . 5 . . . . Guns 4 | . . . . . . . 1 . . 2 1 Cannons 26 | . . 4 6 7 . 9 . . . . . AOE 10 | . . . . . . 4 4 2 . . . Classes Destroyed 14 | 1 . 3 2 5 . 2 . 1 . . . Worker 7 | . . . . . . . . 6 . 1 . Builder 2 | . . . . 1 . 1 . . . . . Tunneler 1 | 1 . . . . . . . . . . . Hauler 2 | . . . 1 . . . . 1 . . . Recycler 3 | . . . . 3 . . . . . . . Operator 1 | . . . 1 . . . . . . . . Watcher 3 | . . 1 1 . . . . . . 1 . Swarmer 14 | . . . . . . 7 7 . . . . Grunt 10 | . . 1 3 . . 3 . 1 . 1 1 Protector 2 | . . . . 2 . . . . . . . Sentry 11 | . . 3 3 3 . 2 . . . . . Demolisher 1 | . . . . 1 . . . . . . . Hunter 2 | . . . . 1 . . 1 . . . . Programmer 5 | . . . . . . 1 2 1 . 1 . Best Kill Streak 8 | 1 . 4 3 4 . 6 4 8 . 2 1 Combat Bots Only 5 | . . 3 3 2 . 5 4 2 . 1 1 Max Kills in Single Turn 4 | 1 . 1 1 1 . 2 2 4 . 1 1 Gunslinging . | . . . . . . . . . . . . Exploded 2 | . . . . . . 2 2 2 . . . Melee 1 | . . . . . . . 1 . . . . Uniques/NPCs Destroyed . | . . . . . . . . . . . . Combat | -11 -10 -9 -9 -9 -9 -6 -5 -4 -4 -4 -4 -------- Run | Yrd Mat Mat Sto Rec Scr Fac Fac Fac Was Fac Upp Hostile Shots Fired 778 | . . 15 23 23 . 145 147 145 . 151 129 Missed 272 | . . 8 6 7 . 52 43 58 . 50 48 Hits 506 | . . 7 17 16 . 93 104 87 . 101 81 Projectile 506 | . . 7 17 16 . 93 104 87 . 101 81 AOE 2 | . . . . 2 . . . . . . . Critical Strikes 23 | . . . 1 . . 1 4 8 . 6 3 Actively Blocked 1 | . . . . . . . . 1 . . . Damage Taken 10412 | . 24 87 228 309 . 1321 2654 1888 . 2225 1676 Core 2319 | . . 15 68 108 . 154 800 694 . 222 258 Absorbed by Shields . | . . . . . . . . . . . . Reduced by Siege Mode 122 | . . . . . . . . . . 122 . Redirected to Shielding 159 | . . . . . . . . 159 . . . Regen/Repaired (Parts) 79 | . . . 79 . . . . . . . . Core Remaining (%) 70 | 100 100 . . . 52 81 20 . . . . Volleys Fired 168 | 2 . 17 26 32 . 34 6 8 . 32 11 Largest 2 | 2 . 1 1 1 . 1 2 2 . 2 2 Hottest 188 | 40 . 50 50 50 . 50 72 72 . 58 188 Shots Fired 215 | 4 . 17 26 32 . 34 8 11 . 63 20 Gun 93 | 4 . . . . . . 2 4 . 63 20 Cannon 108 | . . 17 26 32 . 31 2 . . . . Launcher 14 | . . . . . . 3 4 7 . . . Special . | . . . . . . . . . . . . Kinetic 184 | 4 . 17 26 32 . 31 4 4 . 63 3 Thermal 12 | . . . . . . . . . . . 12 Explosive 14 | . . . . . . 3 4 7 . . . Electromagnetic 5 | . . . . . . . . . . . 5 Robot Hit Streak 17 | 2 . 7 12 12 . 3 3 5 . 17 15 Robot Miss Streak 6 | 1 . 4 1 3 . 6 4 1 . 3 2 Penetration Max 1 | . . . 1 . . . . . . 1 . Secondary Targets 1 | . . . . . . . . . . . 1 Max Gunslinging Chain 1 | . . . . . . . . . . . 1 Shots Hit Robots 164 | 2 . 10 18 20 . 13 27 12 . 47 15 Core Hits 98 | 1 . 5 8 10 . 12 15 26 . 16 5 Critical Kills . | . . . . . . . . . . . . Critical Parts Destroyed 1 | . . . . . . . 1 . . . . Critical Strikes 11 | . . 1 1 4 . 2 3 . . . . Blast 8 | . . 1 1 4 . 2 . . . . . Smash 1 | . . . . . . . 1 . . . . Sever 2 | . . . . . . . 2 . . . . Melee Attacks 93 | . . . . . . . 73 16 . . 4 Impact 7 | . . . . . . . 7 . . . . Slashing 86 | . . . . . . . 66 16 . . 4 Piercing . | . . . . . . . . . . . . Sneak Attacks 1 | . . . . . . . . 1 . . . Combat Hostiles . | . . . . . . . . . . . . Follow-up Attacks 5 | . . . . . . . 5 . . . . Damage Inflicted 7677 | 17 . 509 924 990 . 1129 1217 1265 . 1215 411 Guns 1746 | 17 . . . . . . 37 87 . 1194 411 Cannons 3178 | . . 508 924 986 . 760 . . . . . Explosions 1765 | . . . . . . 369 450 946 . . . Melee 873 | . . . . . . . 709 164 . . . Ramming 115 | . . 1 . 4 . . 21 68 . 21 . Kinetic 4580 | 17 . 508 924 986 . 760 37 87 . 1194 67 Thermal 288 | . . . . . . . . . . . 288 Explosive 1765 | . . . . . . 369 450 946 . . . Electromagnetic 56 | . . . . . . . . . . . 56 Impact 117 | . . . . . . . 117 . . . . Slashing 756 | . . . . . . . 592 164 . . . Piercing . | . . . . . . . . . . . . Highest Corruption 29 | . . . . . . 1 29 11 11 12 12 Average Corruption 11 | . . . . . . 1 12 7 11 11 12 Corruption Purged . | . . . . . . . . . . . . Corruption Blocked . | . . . . . . . . . . . . Effects 75 | . . . . . . . 31 1 1 19 23 Message Errors 16 | . . . . . . . 6 . . 5 5 Matter Fused 16 | . . . . . . . 6 1 . 4 5 Heat Flow Errors 6 | . . . . . . . 1 . 1 4 . Energy Discharges 9 | . . . . . . . 5 . . 1 3 Parts Rejected 4 | . . . . . . . 1 . . 1 2 Parts Fused 3 | . . . . . . . 3 . . . . Data Loss (minor) 4 | . . . . . . . . . . 2 2 Data Loss (major) 5 | . . . . . . . 3 . . 2 . Misfires 2 | . . . . . . . . . . . 2 Misdirections 7 | . . . . . . . 6 . . . 1 Weapon Failures 3 | . . . . . . . . . . . 3 Overload Shots . | . . . . . . . . . . . . Overflow Damage 375 | . . 30 43 138 . 78 86 . . . . Projectiles 253 | . . 30 43 138 . 42 . . . . . Explosions 59 | . . . . . . 36 23 . . . . Melee 63 | . . . . . . . 63 . . . . Knockbacks 13 | . . 3 2 3 . 3 2 . . . . Impact 2 | . . . . . . . 2 . . . . Kinetic 10 | . . 3 2 2 . 3 . . . . . Secondary 1 | . . . . 1 . . . . . . . Self-Inflicted Damage 229 | . . . . . . 103 . 126 . . . Shots 6 | . . . . . . 3 . 3 . . . Rammed 6 | . . . . . . . 1 . . 5 . Targets Rammed 12 | . . 1 . 1 . . 5 . . 5 . Kicked 6 | . . 1 . 1 . . 4 . . . . Crushed . | . . . . . . . . . . . . Highest Temperature 246 | . . 17 31 26 . 13 83 27 100 246 226 Average Temperature 29 | . . 6 6 6 . 3 19 11 57 81 84 Received Heat Transfer 1400 | . . 33 93 45 . 126 90 299 . 410 304 Effects 1 | . . . . . . . . . . 1 . Interference 1 | . . . . . . . . . . 1 . Siege Activations 2 | . . . . . . . . . . 2 . Total Turns 19 | . . . . . . . . . . 19 . Longest Duration 14 | . . . . . . . . . . 14 . Martial Activations . | . . . . . . . . . . . . Shielding Activations . | . . . . . . . . . . . . Robots Disrupted . | . . . . . . . . . . . . Combat Hostiles . | . . . . . . . . . . . . Robots Corrupted . | . . . . . . . . . . . . Combat Hostiles . | . . . . . . . . . . . . Parts Fried . | . . . . . . . . . . . . Impact Corruptions 2 | . . . . 1 . . 1 . . . . Robots Melted . | . . . . . . . . . . . . Combat Hostiles . | . . . . . . . . . . . . Parts Melted 1 | . . . . . . . . . . . 1 Heat Transferred 370 | . . . . . . . . . . . 370 Parts Sabotaged . | . . . . . . . . . . . . Parts Stolen . | . . . . . . . . . . . . Parts Stripped . | . . . . . . . . . . . . Power Chain Reactions . | . . . . . . . . . . . . Alert | -11 -10 -9 -9 -9 -9 -6 -5 -4 -4 -4 -4 ------- Run | Yrd Mat Mat Sto Rec Scr Fac Fac Fac Was Fac Upp Maximum Alert Level 2 | . . . . . . . . 2 . 1 . Low Security (%) 90 | 100 100 100 100 100 . 100 100 50 100 43 . Level 1 8 | . . . . . . . . 35 . 56 . Level 2 . | . . . . . . . . 13 . . . Level 3 . | . . . . . . . . . . . . Level 4 . | . . . . . . . . . . . . Level 5 . | . . . . . . . . . . . . High Security . | . . . . . . . . . . . . Max Security . | . . . . . . . . . . . . Peak Influence 558 | 5 . 123 68 36 . 119 116 558 184 360 . Initial 184 | . . . 42 . . . 31 43 184 114 . Average 59 | . . 34 26 7 . 48 25 196 178 209 . Influence Increases 2826 | 5 . 150 203 186 . 389 540 772 . 466 115 Destroy 0b10 Robot/C 1200 | . . 80 120 100 . 260 200 180 . 240 20 Destroy 0b10 Robot/NC 150 | 5 . 5 15 30 . 5 . 35 . 50 5 Destroy Leader 260 | . . 32 44 . . 60 40 42 . 42 . Allied During Kill 46 | . . . . . . . . 18 . 28 . Successful Hack 86 | . . 7 11 27 . 13 . 26 . 2 . Disable Machine 75 | . . . . 15 . . . 30 . 30 . Destroy Structure 334 | . . 11 13 14 . 36 90 126 . 44 . Partial Spotted 45 | . . . . . . . 30 15 . . . Lose Combat Pursuer 630 | . . 15 . . . 15 180 300 . 30 90 Influence Decreases 2822 | 5 . 47 306 186 . 324 516 333 364 394 347 Entered New Map 623 | . . . 61 . . . 34 46 344 50 88 Time Decay 1630 | 5 . 47 187 175 . 276 328 139 20 254 199 Lost Part 423 | . . . . 1 . 48 144 100 . 70 60 Lost Ally 60 | . . . . 10 . . 10 20 . 20 . Purge Threat 86 | . . . 58 . . . . 28 . . . Squads Dispatched 20 | . . . . . . 4 6 4 . 6 . Investigation 9 | . . . . . . 2 3 2 . 2 . Extermination 7 | . . . . . . 2 3 1 . 1 . Reinforcement 4 | . . . . . . . . 1 . 3 . Assault . | . . . . . . . . . . . . Garrison . | . . . . . . . . . . . . Intercept . | . . . . . . . . . . . . Searches Triggered . | . . . . . . . . . . . . Construction Impeded 1 | . . . . . . . . 1 . . . Haulers Reinforced . | . . . . . . . . . . . . Active Scanning Responses . | . . . . . . . . . . . . Cargo Convoy Interrupts . | . . . . . . . . . . . . Stealth | -11 -10 -9 -9 -9 -9 -6 -5 -4 -4 -4 -4 --------- Run | Yrd Mat Mat Sto Rec Scr Fac Fac Fac Was Fac Upp Distress Signals 13 | . . 1 1 . . 2 2 3 . 4 . Communications Jammed 4 | . . . . . . . 4 . . . . Distress Signals 4 | . . . . . . . 4 . . . . Times Spotted 166 | . . 7 7 11 . 20 34 42 6 29 10 Peak Tracking Total 14 | . 1 4 3 4 . 6 12 14 6 11 4 Tactical Retreats 18 | . . 1 . . . 1 8 3 . 2 3 Traps | -11 -10 -9 -9 -9 -9 -6 -5 -4 -4 -4 -4 ------- Run | Yrd Mat Mat Sto Rec Scr Fac Fac Fac Was Fac Upp Traps Triggered 5 | . 2 . . . . 1 . 2 . . . Indirectly . | . . . . . . . . . . . . Trap Hack Attempts . | . . . . . . . . . . . . Triggered . | . . . . . . . . . . . . Disarmed . | . . . . . . . . . . . . Reprogrammed . | . . . . . . . . . . . . Reused . | . . . . . . . . . . . . Traps Extracted . | . . . . . . . . . . . . Installed . | . . . . . . . . . . . . Triggered . | . . . . . . . . . . . . Machines | -11 -10 -9 -9 -9 -9 -6 -5 -4 -4 -4 -4 ---------- Run | Yrd Mat Mat Sto Rec Scr Fac Fac Fac Was Fac Upp Machines Disabled 5 | . . . . 1 . . . 2 . 2 . Max in Single Turn 1 | . . . . 1 . . . 1 . 1 . Machines Repaired . | . . . . . . . . . . . . Machines Dismantled . | . . . . . . . . . . . . Machines Sabotaged . | . . . . . . . . . . . . Overloaded Fab Kills . | . . . . . . . . . . . . Hacking | -11 -10 -9 -9 -9 -9 -6 -5 -4 -4 -4 -4 --------- Run | Yrd Mat Mat Sto Rec Scr Fac Fac Fac Was Fac Upp Machines Accessed 40 | . 1 2 6 5 2 7 7 6 . 3 1 Terminals 21 | . 1 2 4 5 . 4 . 4 . 1 . Fabricators 1 | . . . . . . 1 . . . . . Repair Stations 2 | . . . 1 . . . . . . 1 . Recycling Units 9 | . . . . . . 2 4 2 . 1 . Scanalyzers 2 | . . . . . . . 2 . . . . Garrison Access 2 | . . . 1 . . . 1 . . . . Total Hacks 91 | . 2 4 10 12 7 14 18 16 . 7 1 Successful 49 | . 1 1 6 6 7 4 11 9 . 3 1 Failed 42 | . 1 3 4 6 . 10 7 7 . 4 . Catastrophic 9 | . . . 2 3 . 1 1 2 . . . Database Lockouts . | . . . . . . . . . . . . Manual 31 | . 2 3 6 2 . 8 4 5 . 1 . Terminals 51 | . 2 4 7 12 . 10 . 13 . 3 . Fabricators 1 | . . . . . . 1 . . . . . Repair Stations 5 | . . . 2 . . . . . . 3 . Recycling Units 17 | . . . . . . 3 10 3 . 1 . Scanalyzers 6 | . . . . . . . 6 . . . . Garrison Access 3 | . . . 1 . . . 2 . . . . Terminal Hacks 28 | . . 1 3 6 7 2 . 6 . 2 1 Record 4 | . . . . . 3 . . . . 1 . Part Schematic 2 | . . . 1 1 . . . . . . . Robot Analysis 4 | . . . . . 4 . . . . . . Open Door 2 | . . . 1 . . . . . . . 1 Branch Access Points 1 | . . 1 . . . . . . . . . Terminal Index 2 | . . . . . . 1 . 1 . . . Recycling Unit Index 1 | . . . . . . 1 . . . . . Alert Level 1 | . . . . 1 . . . . . . . Unreport Threat 4 | . . . 1 1 . . . 2 . . . Locate Traps 1 | . . . . . . . . 1 . . . Registered Components 1 | . . . . 1 . . . . . . . Zone Layout 5 | . . . . 2 . . . 2 . 1 . Fabricator Hacks . | . . . . . . . . . . . . Repair Station Hacks 2 | . . . 2 . . . . . . . . Scan Component 1 | . . . 1 . . . . . . . . Repair 1 | . . . 1 . . . . . . . . Recycling Unit Hacks 3 | . . . . . . . 2 1 . . . Process 1 | . . . . . . . . 1 . . . Retrieve Matter 2 | . . . . . . . 2 . . . . Scanalyzer 6 | . . . . . . . 6 . . . . Insert Component 1 | . . . . . . . 1 . . . . Analyze 1 | . . . . . . . 1 . . . . Retrieve Study 4 | . . . . . . . 4 . . . . Garrison Access Hacks . | . . . . . . . . . . . . Unauthorized Hacks 10 | . 1 . 1 . . 2 3 2 . 1 . Terminals 1 | . 1 . . . . . . . . . . Botnet 1 | . 1 . . . . . . . . . . Fabricators . | . . . . . . . . . . . . Repair Stations . | . . . . . . . . . . . . Recycling Units 8 | . . . . . . 2 3 2 . 1 . Fedlink 6 | . . . . . . 2 3 1 . . . Scraphulk 2 | . . . . . . . . 1 . 1 . Scanalyzers . | . . . . . . . . . . . . Garrison Access 1 | . . . 1 . . . . . . . . Watchers 1 | . . . 1 . . . . . . . . Data Cores Recovered . | . . . . . . . . . . . . Used . | . . . . . . . . . . . . Hacking Detections 26 | . 1 1 5 4 . 5 4 4 . 2 . Full Trace Events 2 | . . . . 1 . . . . . 1 . Feedback Events . | . . . . . . . . . . . . Feedback Blocked . | . . . . . . . . . . . . Robot Schematics Acquired . | . . . . . . . . . . . . Robots Built . | . . . . . . . . . . . . Authchips . | . . . . . . . . . . . . Time . | . . . . . . . . . . . . Total Robot Build Rating . | . . . . . . . . . . . . Part Schematics Acquired 3 | . . . 1 1 . . 1 . . . . Parts Built . | . . . . . . . . . . . . Authchips . | . . . . . . . . . . . . Time . | . . . . . . . . . . . . Total Part Build Rating . | . . . . . . . . . . . . Part Studies Acquired 4 | . . . . . . . 4 . . . . Parts Repaired 1 | . . . 1 . . . . . . . . Time 38 | . . . 38 . . . . . . . . Parts Recycled . | . . . . . . . . . . . . Recycled Matter . | . . . . . . . . . . . . Retrieved Matter . | . . . . . . . . . . . . Retrieved Components . | . . . . . . . . . . . . Parts Scanalyzed 1 | . . . . . . . 1 . . . . Part Schematics Acquired 1 | . . . . . . . 1 . . . . Parts Damaged . | . . . . . . . . . . . . Bothacking | -11 -10 -9 -9 -9 -9 -6 -5 -4 -4 -4 -4 ------------ Run | Yrd Mat Mat Sto Rec Scr Fac Fac Fac Was Fac Upp Used RIF Installer . | . . . . . . . . . . . . Robots Hacked . | . . . . . . . . . . . . Non-combat . | . . . . . . . . . . . . Combat . | . . . . . . . . . . . . Robot Hacks Applied . | . . . . . . . . . . . . Relay Couplers Released . | . . . . . . . . . . . . Fabnet Peak Effective % . | . . . . . . . . . . . . Robots Rewired . | . . . . . . . . . . . . Allies Hacked . | . . . . . . . . . . . . Hacks Repelled . | . . . . . . . . . . . . Allies | -11 -10 -9 -9 -9 -9 -6 -5 -4 -4 -4 -4 -------- Run | Yrd Mat Mat Sto Rec Scr Fac Fac Fac Was Fac Upp Total Allies 2 | . . . . . . . . 1 . 1 . Largest Group 1 | . . . . . . . . 1 . 1 . Highest-Rated Group 123 | . . . . . . . . 123 . 123 . Highest-Rated Ally 123 | . . . . . . . . 123 . 123 . Total Orders 13 | . . . 3 2 . 2 5 . . 1 . AID 1 | . . . . . . . . . . 1 . EXPLORE 12 | . . . 3 2 . 2 5 . . . . Ally Attacks 37 | . . . . . . . . 13 . 24 . Total Damage 1906 | . . . . . . . . 781 . 1125 . Kills 25 | . . . . . . . . 7 . 18 . Allies Corrupted 1 | . . . 1 . . . . . . . . Allies Melted . | . . . . . . . . . . . . Intel | -11 -10 -9 -9 -9 -9 -6 -5 -4 -4 -4 -4 ------- Run | Yrd Mat Mat Sto Rec Scr Fac Fac Fac Was Fac Upp Active Infowar (turns) 2013 | 6 172 . . . 489 234 1112 . . . . Terrain 723 | . . . . . 489 234 . . . . . Seismic 178 | 6 172 . . . . . . . . . . Jamming 1112 | . . . . . . . 1112 . . . . Robot Analysis Total 4 | . . . . . 4 . . . . . . Derelict Logs Recovered . | . . . . . . . . . . . . Drone Launches 15 | . . . 4 2 . 2 7 . . . . Drone Recoveries 7 | . . . 3 1 . . 3 . . . . Exploration | -11 -10 -9 -9 -9 -9 -6 -5 -4 -4 -4 -4 ------------- Run | Yrd Mat Mat Sto Rec Scr Fac Fac Fac Was Fac Upp Turns Passed 7014 | 88 186 179 421 791 1752 895 1242 300 40 549 571 Spaces Moved 4745 | 65 143 103 178 501 921 491 1050 524 78 324 367 Core 185 | 35 . . . . . . . 28 77 45 . Treads 342 | . . . . . . 217 . 3 . 122 . Legs 3073 | 30 143 103 178 501 921 274 539 . . 17 367 Wheels . | . . . . . . . . . . . . Hover 139 | . . . . . . . 101 . 1 37 . Flight 1006 | . . . . . . . 410 493 . 103 . Fastest Speed 28 | 50 120 120 120 120 190 120 28 34 50 40 111 Average Speed 123 | 100 120 120 158 139 190 146 93 37 50 118 122 Slowest Speed 270 | 120 120 120 190 190 190 260 260 160 80 270 185 Overloaded Moves . | . . . . . . . . . . . . Propulsion Burnouts . | . . . . . . . . . . . . Robots Hopped 5 | . . . . . . . . 5 . . . Potential Cave-ins 15 | . . . . . . . 15 . . . . Cave-ins Triggered 2 | . . . . . . . 2 . . . . Exploration Rate (%) 37 | 6 29 20 37 97 68 20 29 12 77 11 42 Regions Visited 11 Branch Regions 4 Pre-discovered Areas 1 | . . . . . . 1 . . . . . Known Exits Taken 6 | . 1 1 1 1 1 1 . . . . . Unknown Exits Taken 3 | 1 . . . . . . 1 . . 1 . Scrap Searched 6 | . . . . . 4 . . . . . 2 Spaces Dug 65 | . . 2 8 . . 2 37 12 . . 4 Terrain Destroyed 206 | . . 11 13 15 . 37 73 51 . . 6 Melee 53 | . . . . . . . 37 12 . . 4 Projectile 68 | . . 11 13 15 . 22 3 2 . . 2 AOE 84 | . . . . . . 15 33 36 . . . Terrain Rammed 2 | . . . . . . . . 2 . . . Walls Destroyed 1 | . . . . . . . . 1 . . . Machines Disabled . | . . . . . . . . . . . . Actions | -11 -10 -9 -9 -9 -9 -6 -5 -4 -4 -4 -4 --------- Run | Yrd Mat Mat Sto Rec Scr Fac Fac Fac Was Fac Upp Total 5477 | 84 157 135 276 546 924 619 1198 585 78 419 456 Wait 254 | . 5 1 67 13 . 69 8 17 . 27 47 Move 4725 | 64 142 102 177 500 920 490 1048 514 77 324 367 Hop 5 | . . . . . . . . 5 . . . Pick Up 81 | 11 6 5 1 . 1 10 20 7 . 15 5 Fast Attach 25 | . 1 1 3 . . . 6 1 1 6 6 Attach 70 | 7 1 2 . . 2 12 18 10 . 9 9 Detach 7 | . . . . . . 3 3 . . . 1 Swap 19 | . 1 . . . . 1 9 1 . 1 6 Drop 23 | . 1 6 2 . 1 . 8 4 . 1 . Fire 168 | 2 . 17 26 32 . 34 6 8 . 32 11 Melee 86 | . . . . . . . 66 16 . . 4 Ram 2 | . . . . . . . . 2 . . . Kick 6 | . . 1 . 1 . . 4 . . . . Crush 5 | . . . . . . . 1 . . 4 . Escape Stasis 1 | . . . . . . . 1 . . . . Rewire . | . . . . . . . . . . . . Trap . | . . . . . . . . . . . . Miscellaneous . | . . . . . . . . . . . . Route ------- -11/Scrapyard -10/Materials -9/Materials (discovered 4 exits: *Min x2 / *Sto x2) -9/Storage -9/Recycling (discovered 2 exits: [*Fac] / *Scr) -9/Scraptown (discovered 2 exits: *Fac x2) -6/Factory -5/Factory (discovered 2 exits: *Fac / *Upp) -4/Factory -4/Waste -4/Factory -4/Upper Caves History --------- Turn | Location | Event 13 | -11/Scrapyard | Discovered new exit (range 15) 89 | -11/Scrapyard | Entered Materials 243 | -10/Materials | Discovered new exit (range 4) 262 | -10/Materials | Identified exit to Materials 275 | -10/Materials | Entered another Materials area 275 | -9/Materials | Evolved 2 slots: Propulsion x1, Utility x1 318 | -9/Materials | Build established: Mutant 392 | -9/Materials | Identified exit to Mines 392 | -9/Materials | Identified exit to Storage 454 | -9/Materials | Entered Storage 824 | -9/Storage | Repaired Hvy. Assault Cannon 871 | -9/Storage | Used back door to open Recycling access 871 | -9/Storage | Discovered new exit (range 4) 873 | -9/Storage | Identified exit to Recycling 875 | -9/Storage | Entered Recycling 1157 | -9/Recycling | Discovered new exit (range 15) 1619 | -9/Recycling | Scanned before Scraplab entrance 1645 | -9/Recycling | Entered Scraplab 1662 | -9/Recycling | Discovered new exit (range 2) 1662 | -9/Recycling | Identified exit to Scraptown 1666 | -9/Recycling | Entered Scraptown 1795 | -9/Scraptown | Heard Great Nut preacher, LISTEN AND RECITE! 1842 | -9/Scraptown | Visited TADAMA 2129 | -9/Scraptown | Discovered new exit (range 9) 2410 | -9/Scraptown | Visited Fellowship of the Rings 2849 | -9/Scraptown | Visited UFD Registry 2849 | -9/Scraptown | Registered with UFD as "Softslicer" 2902 | -9/Scraptown | Visited Infowarlord's Domain 2916 | -9/Scraptown | Found Exp. Terrain Scanner 2983 | -9/Scraptown | Visited Research Penetration Think Tank 3055 | -9/Scraptown | Visited Abandonware Association 3199 | -9/Scraptown | Visited Scrap Suit Storage 3279 | -9/Scraptown | Met Optimus 3279 | -9/Scraptown | Accepted into 0bPrime 3336 | -9/Scraptown | Visited Analyses Database 3408 | -9/Scraptown | Discovered new exit (range 5) 3416 | -9/Scraptown | Identified exit to Factory 3418 | -9/Scraptown | Entered Factory 3418 | -6/Factory | Evolved 6 slots: Power x1, Propulsion x1, Utility x4 4022 | -6/Factory | Discovered new exit (range 16) 4035 | -6/Factory | Loaded intel: 8 recycling unit locations 4108 | -6/Factory | Identified exit to Factory 4239 | -6/Factory | Learned location of Protoforge (-2) 4313 | -6/Factory | Entered another Factory area 4313 | -5/Factory | Evolved 2 slots: Propulsion x1, Utility x1 4354 | -5/Factory | Loaded intel: 8 recycling unit locations 4405 | -5/Factory | Lost 3 parts (1n1u1w) 4661 | -5/Factory | Build established: Scavenger-Mutant 4863 | -5/Factory | Lost 5 parts (1p3n1u) 5310 | -5/Factory | Crushed by falling debris 5310 | -5/Factory | Core integrity fell below 50% 5310 | -5/Factory | System corruption reached 10% 5341 | -5/Factory | Lost 3 parts (2n1u) 5366 | -5/Factory | Discovered new exit (range 4) 5368 | -5/Factory | Identified exit to Upper Caves 5472 | -5/Factory | Crushed by falling debris 5503 | -5/Factory | Lost 3 parts (1n2u) 5550 | -5/Factory | Discovered new exit (range 12) 5555 | -5/Factory | Entered another Factory area 5555 | -4/Factory | Evolved 2 slots: Utility x2 5660 | -4/Factory | Loaded intel: 8 recycling unit locations 5696 | -4/Factory | Scraphulk reinforcements arrived 5773 | -4/Factory | Build established: Mutant 5838 | -4/Factory | System corruption reached 10% 5841 | -4/Factory | Released all parts (6) 5846 | -4/Factory | Core integrity fell below 50% 5855 | -4/Factory | Sucked down chute 5855 | -4/Factory | Entered Waste 5860 | -4/Waste | Spotted C-40 Crusher 5871 | -4/Waste | Lost 7 parts (2n2u3w) 5871 | -4/Waste | Spotted C-40 Crusher 5879 | -4/Waste | Spotted C-40 Crusher 5885 | -4/Waste | Spotted C-40 Crusher 5886 | -4/Waste | Spotted C-40 Crusher 5886 | -4/Waste | Spotted C-40 Crusher 5889 | -4/Waste | Discovered new exit (range 10) 5895 | -4/Waste | Entered Factory 5957 | -4/Factory | Spotted B-86 Titan 6049 | -4/Factory | Scraphulk reinforcements arrived 6418 | -4/Factory | Discovered new exit (range 13) 6444 | -4/Factory | Entered Upper Caves 6473 | -4/Upper Caves | Lost 4 parts (2n1u1w) 6521 | -4/Upper Caves | Spotted B-86 Titan 6554 | -4/Upper Caves | Core integrity fell below 20% 6743 | -4/Upper Caves | Build established: Scavenger-Mutant 7015 | -4/Upper Caves | Destroyed by G-73 Enforcer with Phase Gun Last Messages --------------- Quantum Rifle. 06938_ System corrupted: Quantum Rifle misfires. 06959_ Com. Battery destroyed. 06959_ Critical hit (Burn: +50). 06962_ C,Z>G%DUR6DEXPQHJZCQKYD#V 1 06962_ System corrupted: Quantum Rifle failed to cycle. 06962_ Antimatter Reactor destroyed. 06965_ System corrupted: Quantum Rifle failed to cycle. 06967_ G-67 Veteran overheating. 06968_ Adv. Heat Sink melted. 06968_ G-67 Veteran destroyed. 06968_ Switching to secondary target: G-67 Veteran. 06990_ System corrupted: Myomer Leg rejected. 06990_ Acquired Myomer Leg. 06996_ Myomer Leg destroyed. 07010_ N%1NYI